Cogmind - Beta 13 @@@ ROGUE MODE // 2024.04.13 @ 16:29:51 Player: TheBermanGrit Result: Self-destructed Performance ------------- Evolutions (2) 1000 Regions Visited (3) 600 Robots Destroyed (14) 70 Value Destroyed (497) 497 Prototype IDs (1) 20 Alien Tech Used (0) 0 Bonus (0) 0 TOTAL SCORE: 2187 Bonus ------- None Cogmind --------- Core Integrity 434/550 Matter 189/300 Energy 100/100 System Corruption 0% Temperature Cool (0) Movement Treading (160) Location -8/Materials Parts ------- > --- POWER (2) -------- (None) > --- PROPULSION (3) --- Light Treads Light Treads > --- UTILITY (4) ------ Large Storage Unit Improved Targeting Computer ECM Suite Hacking Suite > --- WEAPON (2) ------- (None) > --- INVENTORY (15) --- Light Ion Engine Heat Sink ECM Suite ECM Suite ECM Suite ECM Suite Utility Shielding Utility Shielding Shield Generator Improved Medium Laser EMP Blaster Peak State ------------ > --- POWER ------------ Ion Engine Improved Ion Engine > --- PROPULSION ------- Light Treads Light Treads > --- UTILITY ---------- Large Storage Unit Improved Targeting Computer ECM Suite Hacking Suite > --- WEAPON ----------- Shotgun Grenade Launcher > --- INVENTORY -------- Light Ion Engine Heat Sink ECM Suite ECM Suite ECM Suite ECM Suite Utility Shielding Utility Shielding Shield Generator Improved Medium Laser EMP Blaster [Rating: 16] Favorites ----------- Power Ion Engine Engine Ion Engine Propulsion Light Treads Treads Light Treads Utility Large Storage Unit Device ECM Suite Storage Large Storage Unit Processor Visual Processing Unit Hackware Hacking Suite Weapon Assault Rifle Energy Gun Improved Medium Laser Ballistic Gun Assault Rifle Launcher Grenade Launcher Build | -11 -10 -9 -8 ------- Run | Yrd Mat Mat Mat Slots Evolved 4 | . . 2 2 Power 1 | . . 1 . Propulsion 1 | . . . 1 Utility 2 | . . 1 1 Weapon . | . . . . Parts Attached 20 | 6 2 7 5 Power 3 | 1 . 2 . Engine 3 | 1 . 2 . Core . | . . . . Reactor . | . . . . Propulsion 3 | 2 . . 1 Treads 3 | 2 . . 1 Leg . | . . . . Wheel . | . . . . Hover . | . . . . Flight . | . . . . Utility 8 | 1 2 2 3 Device 3 | . . 2 1 Storage 2 | 1 1 . . Processor 2 | . 1 . 1 Hackware 1 | . . . 1 Protection . | . . . . Artifact . | . . . . Weapon 6 | 2 . 3 1 Energy Gun 1 | . . 1 . Energy Cannon . | . . . . Ballistic Gun 4 | 2 . 2 . Ballistic Cannon . | . . . . Launcher 1 | . . . 1 Special Weapon . | . . . . Impact Weapon . | . . . . Slashing Weapon . | . . . . Piercing Weapon . | . . . . Special Melee Weapon . | . . . . Unidentified Prototypes 1 | . . 1 . Parts Lost 7 | . . 1 6 Power 2 | . . . 2 Propulsion 1 | . . . 1 Utility 1 | . . 1 . Weapon 3 | . . . 3 Highest Loss Streak 5 | . . 1 5 To Critical Strikes . | . . . . Average Slot Usage (%) 97 | . 97 99 92 Engine 17 | . 14 22 17 Treads 24 | . 28 22 22 Device 7 | . . 10 16 Storage 11 | . 14 11 9 Processor 10 | . 11 11 9 Ballistic Gun 23 | . 28 22 15 Naked Turns . | . . . . Heaviest Build 41 | 13 33 39 41 Greatest Support 60 | 40 40 40 60 Greatest Overweight (x) 1 | . . . 1 Average Overweight (x) . | . . . . Largest Inventory Capacity 15 | 8 15 15 15 Average Capacity 14 | 7 14 15 15 Most Carried 14 | 1 13 14 12 Average Carried 8 | . 4 12 11 Final Capacity 15 | 8 15 15 15 Final Carried 13 | 1 13 13 11 Class Distribution -------------------- 100% | Mutant Dominant Class ---------------- Mutant | -10/Materials Mutant | -9/Materials Mutant | -8/Materials Resources | -11 -10 -9 -8 ----------- Run | Yrd Mat Mat Mat Matter Collected 534 | 176 164 152 42 Remotely . | . . . . Salvage Created 574 | . 164 171 239 Parts 29 | . 5 9 15 Haulers Intercepted 1 | . 1 . . Recyclers Shooed . | . . . . Parts Field Recycled . | . . . . Retrieved Matter . | . . . . Parts Self-Destructed . | . . . . Prevented . | . . . . Kills | -11 -10 -9 -8 ------- Run | Yrd Mat Mat Mat Combat Hostiles Destroyed 11 | . 2 4 5 Guns 9 | . 2 4 3 AOE 2 | . . . 2 Classes Destroyed 6 | . 3 1 2 Builder 1 | . . . 1 Hauler 1 | . 1 . . Operator 1 | . 1 . . Grunt 9 | . 2 3 4 Sentry 1 | . . 1 . Hunter 1 | . . . 1 Best Kill Streak 3 | . 2 2 3 Combat Bots Only 3 | . 2 2 3 Max Kills in Single Turn 1 | . 1 1 1 Gunslinging . | . . . . Exploded 1 | . . . 1 Melee . | . . . . Uniques/NPCs Destroyed . | . . . . Combat | -11 -10 -9 -8 -------- Run | Yrd Mat Mat Mat Hostile Shots Fired 83 | . 8 33 42 Missed 15 | . 3 8 4 Damage Taken 1093 | . 95 329 669 Core 187 | . . 71 116 Absorbed by Shields . | . . . . Core Remaining (%) 94 | 100 100 82 . Volleys Fired 46 | . 15 14 17 Largest 2 | . 2 2 2 Hottest 53 | . 40 43 53 Shots Fired 85 | . 30 28 27 Gun 80 | . 30 28 22 Cannon . | . . . . Launcher 5 | . . . 5 Special . | . . . . Kinetic 80 | . 30 28 22 Thermal . | . . . . Explosive 5 | . . . 5 Electromagnetic . | . . . . Robot Hit Streak 11 | . 6 10 11 Robot Miss Streak 5 | . 5 2 2 Penetration Max . | . . . . Secondary Targets 1 | . . . 1 Max Gunslinging Chain 1 | . . . 1 Shots Hit Robots 65 | . 20 23 22 Core Hits 42 | . 8 12 22 Critical Kills . | . . . . Critical Parts Destroyed 1 | . . . 1 Critical Strikes 1 | . . . 1 Destroy 1 | . . . 1 Melee Attacks . | . . . . Impact . | . . . . Slashing . | . . . . Piercing . | . . . . Sneak Attacks . | . . . . Combat Hostiles . | . . . . Follow-up Attacks . | . . . . Damage Inflicted 1107 | . 214 349 544 Guns 794 | . 214 335 245 Cannons . | . . . . Explosions 299 | . . . 299 Melee . | . . . . Ramming 14 | . . 14 . Kinetic 794 | . 214 335 245 Thermal . | . . . . Explosive 299 | . . . 299 Electromagnetic . | . . . . Impact . | . . . . Slashing . | . . . . Piercing . | . . . . Highest Corruption . | . . . . Average Corruption . | . . . . Corruption Purged . | . . . . Corruption Blocked . | . . . . Overload Shots . | . . . . Overflow Damage 7 | . . . 7 Projectiles . | . . . . Explosions 7 | . . . 7 Melee . | . . . . Knockbacks . | . . . . Impact . | . . . . Kinetic . | . . . . Secondary . | . . . . Self-Inflicted Damage 57 | . . . 57 Shots 3 | . . . 3 Rammed 2 | . . 2 . Targets Rammed 2 | . . 2 . Kicked . | . . . . Crushed . | . . . . Highest Temperature 43 | . 18 43 25 Average Temperature 13 | . 9 17 9 Received Heat Transfer 507 | . 30 171 306 Siege Activations . | . . . . Robots Corrupted . | . . . . Combat Hostiles . | . . . . Parts Fried . | . . . . Impact Corruptions . | . . . . Robots Melted . | . . . . Combat Hostiles . | . . . . Parts Melted . | . . . . Heat Transferred . | . . . . Parts Sabotaged . | . . . . Parts Stolen . | . . . . Parts Stripped . | . . . . Power Chain Reactions . | . . . . Alert | -11 -10 -9 -8 ------- Run | Yrd Mat Mat Mat Peak Influence 171 | . 92 169 171 Initial 70 | . . 38 70 Average 64 | . 55 72 92 Maximum Alert Level . | . . . . Low Security (%) 100 | 100 100 100 100 Level 1 . | . . . . Level 2 . | . . . . Level 3 . | . . . . Level 4 . | . . . . Level 5 . | . . . . High Security . | . . . . Max Security . | . . . . Squads Dispatched 3 | . 2 . 1 Investigation . | . . . . Extermination . | . . . . Reinforcement 3 | . 2 . 1 Assault . | . . . . Garrison . | . . . . Intercept . | . . . . Searches Triggered . | . . . . Construction Impeded 1 | . . . 1 Haulers Reinforced . | . . . . Active Scanning Responses . | . . . . Cargo Convoy Interrupts . | . . . . Stealth | -11 -10 -9 -8 --------- Run | Yrd Mat Mat Mat Distress Signals 1 | . . 1 . Communications Jammed . | . . . . Distress Signals . | . . . . Times Spotted 24 | . 8 7 9 Peak Tracking Total 3 | . 3 3 3 Tactical Retreats 2 | . . 1 1 Traps | -11 -10 -9 -8 ------- Run | Yrd Mat Mat Mat Traps Triggered 1 | . 1 . . Indirectly . | . . . . Trap Hack Attempts . | . . . . Triggered . | . . . . Disarmed . | . . . . Reprogrammed . | . . . . Reused . | . . . . Traps Extracted . | . . . . Installed . | . . . . Triggered . | . . . . Machines | -11 -10 -9 -8 ---------- Run | Yrd Mat Mat Mat Machines Disabled . | . . . . Max in Single Turn . | . . . . Machines Repaired . | . . . . Machines Dismantled . | . . . . Machines Sabotaged . | . . . . Overloaded Fab Kills . | . . . . Hacking | -11 -10 -9 -8 --------- Run | Yrd Mat Mat Mat Machines Accessed 5 | . . 4 1 Terminals 4 | . . 3 1 Fabricators . | . . . . Repair Stations . | . . . . Recycling Units . | . . . . Scanalyzers 1 | . . 1 . Garrison Access . | . . . . Total Hacks 13 | . . 8 5 Successful 10 | . . 6 4 Failed 3 | . . 2 1 Catastrophic . | . . . . Database Lockouts . | . . . . Manual 2 | . 1 . 1 Terminals 11 | . . 6 5 Fabricators . | . . . . Repair Stations . | . . . . Recycling Units . | . . . . Scanalyzers 2 | . . 2 . Garrison Access . | . . . . Terminal Hacks 8 | . . 4 4 Record 6 | . . 2 4 Emergency Access Points 1 | . . 1 . Recall Investigation 1 | . . 1 . Fabricator Hacks . | . . . . Repair Station Hacks . | . . . . Recycling Unit Hacks . | . . . . Scanalyzer 2 | . . 2 . Insert Component 1 | . . 1 . Analyze 1 | . . 1 . Garrison Access Hacks . | . . . . Unauthorized Hacks . | . . . . Terminals . | . . . . Fabricators . | . . . . Repair Stations . | . . . . Recycling Units . | . . . . Scanalyzers . | . . . . Garrison Access . | . . . . Data Cores Recovered . | . . . . Used . | . . . . Hacking Detections 2 | . . 1 1 Full Trace Events . | . . . . Feedback Events . | . . . . Feedback Blocked . | . . . . Robot Schematics Acquired . | . . . . Robots Built . | . . . . Authchips . | . . . . Time . | . . . . Total Robot Build Rating . | . . . . Part Schematics Acquired 1 | . . 1 . Parts Built . | . . . . Authchips . | . . . . Time . | . . . . Total Part Build Rating . | . . . . Parts Repaired . | . . . . Time . | . . . . Parts Recycled . | . . . . Recycled Matter . | . . . . Retrieved Matter . | . . . . Retrieved Components . | . . . . Parts Scanalyzed 1 | . . 1 . Part Schematics Acquired 1 | . . 1 . Parts Damaged . | . . . . Bothacking | -11 -10 -9 -8 ------------ Run | Yrd Mat Mat Mat Used RIF Installer . | . . . . Robots Hacked . | . . . . Non-combat . | . . . . Combat . | . . . . Robot Hacks Applied . | . . . . Relay Couplers Released . | . . . . Fabnet Peak Effective % . | . . . . Robots Rewired . | . . . . Allies Hacked . | . . . . Hacks Repelled . | . . . . Allies | -11 -10 -9 -8 -------- Run | Yrd Mat Mat Mat Total Allies . | . . . . Largest Group . | . . . . Highest-Rated Group . | . . . . Highest-Rated Ally . | . . . . Total Orders . | . . . . Ally Attacks . | . . . . Total Damage . | . . . . Kills . | . . . . Allies Corrupted . | . . . . Allies Melted . | . . . . Intel | -11 -10 -9 -8 ------- Run | Yrd Mat Mat Mat Robot Analysis Total . | . . . . Derelict Logs Recovered . | . . . . Drone Launches . | . . . . Drone Recoveries . | . . . . Exploration | -11 -10 -9 -8 ------------- Run | Yrd Mat Mat Mat Turns Passed 893 | 52 356 352 133 Spaces Moved 442 | 30 182 184 46 Core 4 | 4 . . . Treads 438 | 26 182 184 46 Legs . | . . . . Wheels . | . . . . Hover . | . . . . Flight . | . . . . Fastest Speed 50 | 50 160 160 160 Average Speed 159 | 145 160 160 168 Slowest Speed 240 | 160 160 160 240 Overloaded Moves . | . . . . Propulsion Burnouts . | . . . . Robots Hopped . | . . . . Cave-ins Triggered . | . . . . Exploration Rate (%) 14 | 4 25 21 8 Regions Visited 3 Branch Regions . Pre-discovered Areas . | . . . . Known Exits Taken . | . . . . Unknown Exits Taken 3 | 1 1 1 . Scrap Searched . | . . . . Spaces Dug . | . . . . Terrain Destroyed 21 | . . . 21 Melee . | . . . . Projectile . | . . . . AOE 21 | . . . 21 Terrain Rammed . | . . . . Walls Destroyed . | . . . . Machines Disabled . | . . . . Actions | -11 -10 -9 -8 --------- Run | Yrd Mat Mat Mat Total 540 | 36 219 212 73 Wait 9 | . 8 . 1 Move 439 | 29 181 183 46 Hop . | . . . . Pick Up 20 | 1 12 4 3 Fast Attach 8 | 6 2 . . Attach 6 | . . 3 3 Detach . | . . . . Swap 6 | . . 4 2 Drop 4 | . 1 2 1 Fire 46 | . 15 14 17 Melee . | . . . . Ram . | . . . . Kick . | . . . . Crush 2 | . . 2 . Escape Stasis . | . . . . Rewire . | . . . . Trap . | . . . . Miscellaneous . | . . . . Route ------- -11/Scrapyard -10/Materials -9/Materials -8/Materials History --------- Turn | Location | Event 2 | -11/Scrapyard | Met Revision 17 16 | -11/Scrapyard | Discovered new exit (range 16) 53 | -11/Scrapyard | Entered Materials 310 | -10/Materials | Build established: Mutant 364 | -10/Materials | Discovered new exit (range 9) 409 | -10/Materials | Entered another Materials area 409 | -9/Materials | Evolved 2 slots: Power x1, Utility x1 755 | -9/Materials | Discovered new exit (range 4) 761 | -9/Materials | Entered another Materials area 761 | -8/Materials | Evolved 2 slots: Propulsion x1, Utility x1 894 | -8/Materials | Self-destructed Last Messages --------------- R-06 Scavenger collects Particle Gun. R-06 Scavenger collects Aluminum Leg. Assault Rifle destroyed. R-06 Scavenger collects Aluminum Leg. Acquired Hacking Suite. Acquired 42 matter. G-47 Trooper destroyed. Shotgun destroyed. Destroyed Shotgun. Imp. Ion Engine destroyed. U-05 Engineer lays Concrete. U-05 Engineer destroyed. U-05 Engineer lays Concrete. Critical hit (Burn: +37). U-05 Engineer builds a Wall. G-50 Soldier destroyed. Ion Engine destroyed. ALERT: Construction progress impeded, dispatching reinforcements to local area. Grenade Launcher destroyed. Map ----- +----------------------------------------------------+ | ?????????????????????????????????????????????????? | | ?????????????????????????????????????????????????? | | ?????????????????????????????????????????????????? | | ?????????????????????????????????????????????????? | | ?????????????????????????????????????????????????? | | ?????????????????????????????????????????????????? | | ?????????????????????????????????????????????????? | | ?????????????????????? ????????????????????????? | | ?????????????????????? #??????????????????????? | | ?????????????????????? #??????????????????????? | | ????????????????????? #??????????????????????? | | ????????????????????? #??????????????????????? | | ?????????????????????# ??????????????????????? | | ????????????????????? ??????????????????????? | | ????????????????????? %= ??????????????????????? | | ?????????????????????# ??????????????????????? | | ?##########??????????# ??????????????????????? | | ?# """"" #??????????# u ??????????????????????? | | ?# ""T"" #??????????# ########## ????????????? | | ?# ############ a ????????????? | | ?# # % ???????????? | | ?# + % ?????????????? | | ?# """" # g #######??????????????? | | ?#! """" # "" * % #??????????????? | | ?# """" # """ | ! #??????????????? | | ?# # " """ @ #??????????????? | | ?########## T """ #??????????????? | | ??????# " """ #] """ #??????????????? | | ??????# # """ #??????????????? | | ??????# #? """ ???????????????? | | ??????#### ####+### a #?? ???????????????? | | ?????????# #?? ??# #???+###???????????????? | | ?????????# #?? ??# ??? ?????????????????? | | ?????????# #?? ??# ???? ????????????????? | | ?????????# #??""??# ????? ???????????????? | | ?????????# #??""??# ###?????##??????????????? | | ?????????# #??????# ????????????????????????? | | ?????????# #??????# ????????????????????????? | | ?????????# #??????### #????????????????????????? | | ?????????# #????????#+?????????????????????????? | | ?????????# #???????????????????????????????????? | | ?????????? #???????????????????????????????????? | | ?????????? #???????????????????????????????????? | | ?????????? ????????????????????????????????????? | | ?????????????????????????????????????????????????? | | ?????????????????????????????????????????????????? | | ?????????????????????????????????????????????????? | | ?????????????????????????????????????????????????? | | ?????????????????????????????????????????????????? | | ?????????????????????????????????????????????????? | +----------------------------------------------------+ Best States ------------- Heat Dissipation 31 Energy Generation 17 Energy Capacity 415 Matter Stores 300 Matter Capacity 300 Sight Range 18 Terrain Scan Density 10 ECM Strength 2 Evasion (%) 40 Targeting Accuracy 6 Recoil Reduction 3 Offensive Hacking 10 Item Schematics ----------------- ECM Suite | -9/Materials | Scanalyzed Robot Schematics ------------------ None Fabricated ------------ Nothing Alien Tech Used ----------------- None Achievements -------------- None Challenges ------------ None Game ------ Seed AblativeAlphaMachine Manual? 0 Play Time 00:12:25 Cumulative 9.3 hours Start 2024.04.13 @ 16:16:55 End 2024.04.13 @ 16:29:51 Sessions 1 Manual Loads 0 Difficulty Rogue Special Mode None Game No. 16 Rogue 16 Adventurer 0 Explorer 0 Win Type - Total 0 Types 0/0/0/0/0/0/0/0/0 Lore% 4 Gallery% 13 Achievement% 11 Wizard Run 0 Options --------- Layout 1 ASCII 0 Keyboard 0 Movement Arrows Keybinds 0 Fullscreen 1 Font 24/Smallcaps Map View 50x35 Zoom Use 0% Tactical HUD 0 Map Filters NONE Filters NONE Steam 1 RUN: 2bef370b-8293-4c61-84cd-e8d6d4d5c25f